[Event "FIDE WCCC Girls-10 2024"]
[Site "Montesilvano"]
[Date "2024.11.18"]
[Round "3.22"]
[White "Zhang, Weiai"]
[Black "Tu, Tiffany"]
[Result "1/2-1/2"]
[ECO "C45"]
[WhiteElo "1488"]
[BlackElo "1687"]
[PlyCount "140"]
[EventDate "2024.11.18"]
[EventType "swiss"]
[EventCountry "ITA"]
[TimeControl "5400+30"]

1. e4 {[%emt 0:00:02]} e5 {[%emt 0:00:10]} 2. Nf3 {[%emt 0:00:04]} Nc6 {[%emt 0:00:07]} 3. d4 {[%emt 0:00:05]} exd4 {[%emt 0:00:08]} 4. Nxd4 {[%emt 0:00:05]} Nf6 {[%emt 0:00:09]} 5. Nxc6 {[%emt 0:00:06]} bxc6 {[%emt 0:00:09]} 6. Bd3 {[%emt 0:00:04]} Bc5 {[%emt 0:01:39]} 7. e5 {[%emt 0:00:09]} Nd5 {[%emt 0:00:49]} 8. Qg4 {[%emt 0:00:15]} g6 {[%emt 0:18:27]} 9. Bh6 {[%emt 0:00:20]} d6 {[%emt 0:02:09]} 10. Qe2 {[%emt 0:03:39]} Be6 {[%emt 0:01:47]} 11. exd6 {[%emt 0:05:17]} cxd6 {[%emt 0:01:45]} 12. c4 {[%emt 0:07:26]} Nb6 {[%emt 0:06:16]} 13. Nd2 {[%emt 0:06:44]} Qh4 {[%emt 0:03:44]} 14. Bg7 {[%emt 0:04:18]} Rg8 {[%emt 0:02:14]} 15. Bc3 {[%emt 0:00:40]} Na4 {[%emt 0:08:33]} 16. Ne4 {[%emt 0:05:50]} Nxc3 {[%emt 0:02:22]} 17. bxc3 {[%emt 0:00:11]} O-O-O {[%emt 0:08:27]} 18. O-O {[%emt 0:04:50]} Bb6 {[%emt 0:04:02]} 19. Qf3 {[%emt 0:02:28]} f5 {[%emt 0:03:41]} 20. Nc5 {[%emt 0:13:31]} Bd7 {[%emt 0:11:34]} 21. Na4 {[%emt 0:02:41]} Qf6 {[%emt 0:03:34]} 22. c5 {[%emt 0:13:42]} dxc5 {[%emt 0:07:53]} 23. Qf4 {[%emt 0:01:00]} Kb7 {[%emt 0:04:10]} 24. Rab1 {[%emt 0:05:54]} Bc8 {[%emt 0:04:08]} 25. Nxc5+ {[%emt 0:10:20]} Ka8 {[%emt 0:00:09]} 26. Bc4 {[%emt 0:08:58]} Rge8 {[%emt 0:01:05]} 27. Na4 {[%emt 0:01:13]} Qe5 {[%emt 0:02:22]} 28. Nxb6+ {[%emt 0:00:50]} axb6 {[%emt 0:00:13]} 29. Qxe5 {[%emt 0:00:18]} Rxe5 {[%emt 0:00:06]} 30. Rxb6 {[%emt 0:00:07]} Rc5 {[%emt 0:00:21]} 31. Ba6 {[%emt 0:00:55]} Bxa6 {[%emt 0:01:04]} 32. Rxa6+ {[%emt 0:00:10]} Kb7 {[%emt 0:00:06]} 33. Ra3 {[%emt 0:00:13]} Rd3 {[%emt 0:00:35]} 34. Rc1 {[%emt 0:00:46]} Rcd5 {[%emt 0:00:39]} 35. Kf1 {[%emt 0:00:20]} Rd2 {[%emt 0:00:50]} 36. Ke1 {[%emt 0:01:03]} Rd7 {[%emt 0:01:10]} 37. Rb1+ {[%emt 0:00:18]} Kc7 {[%emt 0:00:25]} 38. Ra7+ {[%emt 0:00:08]} Kc8 {[%emt 0:00:17]} 39. Rxd7 {[%emt 0:00:09]} Rxd7 {[%emt 0:00:04]} 40. a4 {[%emt 0:00:25]} Ra7 {[%emt 0:00:42]} 41. Rb4 {[%emt 0:01:07]} Ra5 {[%emt 0:01:36]} 42. Kd2 {[%emt 0:00:30]} Kc7 {[%emt 0:00:18]} 43. Ke3 {[%emt 0:00:10]} Kd6 {[%emt 0:00:24]} 44. Rh4 {[%emt 0:02:09]} Ra7 {[%emt 0:00:29]} 45. a5 {[%emt 0:00:48]} Rxa5 {[%emt 0:00:37]} 46. Rxh7 {[%emt 0:00:08]} Re5+ {[%emt 0:00:19]} 47. Kd4 {[%emt 0:01:44]} Re2 {[%emt 0:00:50]} 48. Rg7 {[%emt 0:00:16]} c5+ {[%emt 0:00:10]} 49. Kd3 {[%emt 0:00:16]} Re6 {[%emt 0:00:41]} 50. Ra7 {[%emt 0:00:16]} Kd5 {[%emt 0:00:25]} 51. c4+ {[%emt 0:00:22]} Ke5 {[%emt 0:00:09]} 52. Ra5 {[%emt 0:00:39]} Rc6 {[%emt 0:00:07]} 53. Ke3 {[%emt 0:00:21]} g5 {[%emt 0:00:16]} 54. g3 {[%emt 0:00:21]} g4 {[%emt 0:00:55]} 55. f3 {[%emt 0:00:16]} gxf3 {[%emt 0:01:19]} 56. Kxf3 {[%emt 0:00:13]} Kd4 {[%emt 0:00:18]} 57. Kf4 {[%emt 0:00:23]} Kxc4 {[%emt 0:00:42]} 58. Kxf5 {[%emt 0:00:10]} Kb4 {[%emt 0:00:07]} 59. Ra1 {[%emt 0:00:21]} c4 {[%emt 0:00:15]} 60. g4 {[%emt 0:00:26]} c3 {[%emt 0:00:39]} 61. g5 {[%emt 0:00:08]} c2 {[%emt 0:00:46]} 62. Rc1 {[%emt 0:01:09]} Kb3 {[%emt 0:00:02]} 63. g6 {[%emt 0:00:05]} Kb2 {[%emt 0:02:31]} 64. Rxc2+ {[%emt 0:00:16]} Rxc2 {[%emt 0:00:00]} 65. g7 {[%emt 0:00:05]} Rg2 {[%emt 0:00:00]} 66. Kf6 {[%emt 0:00:11]} Kc3 {[%emt 0:00:00]} 67. Kf7 {[%emt 0:00:12]} Rf2+ {[%emt 0:00:00]} 68. Kg6 {[%emt 0:00:10]} Rg2+ {[%emt 0:00:00]} 69. Kf7 {[%emt 0:01:15]} Rf2+ {[%emt 0:00:00]} 70. Kg6 {[%emt 0:00:11]} Rg2+ {[%emt 0:00:00]} 1/2-1/2

[Event "FIDE WCCC Girls-10 2024"]
[Site "Montesilvano"]
[Date "2024.11.18"]
[Round "3.23"]
[White "Meng, Miranda"]
[Black "Minasyan, Arina"]
[Result "1-0"]
[ECO "A60"]
[WhiteElo "1675"]
[BlackElo "1545"]
[PlyCount "79"]
[EventDate "2024.11.18"]
[EventType "swiss"]
[EventCountry "ITA"]
[TimeControl "5400+30"]

1. d4 {[%emt 0:00:02]} Nf6 {[%emt 0:00:04]} 2. c4 {[%emt 0:00:05]} e6 {[%emt 0:00:05]} 3. g3 {[%emt 0:00:04]} c5 {[%emt 0:03:56]} 4. d5 {[%emt 0:00:09]} exd5 {[%emt 0:04:50]} 5. cxd5 {[%emt 0:00:05]} d6 {[%emt 0:01:07]} 6. Nc3 {[%emt 0:00:51]} Be7 {[%emt 0:01:56]} 7. e4 {[%emt 0:01:00]} Bg4 {[%emt 0:02:01]} 8. Qb3 {[%emt 0:02:53]} Qc7 {[%emt 0:03:14]} 9. Bg2 {[%emt 0:01:46]} Nbd7 {[%emt 0:04:06]} 10. Be3 {[%emt 0:05:14]} Ne5 {[%emt 0:05:46]} 11. Qc2 {[%emt 0:01:15]} O-O {[%emt 0:07:10]} 12. f4 {[%emt 0:08:09]} Nc4 {[%emt 0:03:57]} 13. Bf2 {[%emt 0:01:19]} Bd7 {[%emt 0:04:52]} 14. Nf3 {[%emt 0:05:20]} Ng4 {[%emt 0:05:26]} 15. Qe2 {[%emt 0:02:14]} Nxf2 {[%emt 0:01:13]} 16. Qxf2 {[%emt 0:00:08]} f5 {[%emt 0:04:09]} 17. Qe2 {[%emt 0:07:41]} Nb6 {[%emt 0:03:55]} 18. e5 {[%emt 0:05:10]} Na4 {[%emt 0:05:14]} 19. Nxa4 {[%emt 0:04:46]} Bxa4 {[%emt 0:00:10]} 20. O-O {[%emt 0:01:00]} Qb6 {[%emt 0:02:35]} 21. Rfe1 {[%emt 0:02:38]} Rfe8 {[%emt 0:04:33]} 22. e6 {[%emt 0:03:35]} Bf6 {[%emt 0:02:36]} 23. Rab1 {[%emt 0:02:11]} Bb5 {[%emt 0:01:36]} 24. Qc2 {[%emt 0:01:23]} Rac8 {[%emt 0:02:28]} 25. Qxf5 {[%emt 0:04:00]} Bc4 {[%emt 0:06:45]} 26. b3 {[%emt 0:02:43]} Bb5 {[%emt 0:01:31]} 27. Kh1 {[%emt 0:00:51]} Rf8 {[%emt 0:01:13]} 28. e7 {[%emt 0:03:39]} Rfe8 {[%emt 0:01:42]} 29. a4 {[%emt 0:01:23]} Ba6 {[%emt 0:00:41]} 30. Qe6+ {[%emt 0:33:56]} Kh8 {[%emt 0:00:14]} 31. Qxc8 {[%emt 0:00:00]} Bb5 {[%emt 0:00:38]} 32. axb5 {[%emt 0:00:00]} Qxb5 {[%emt 0:00:07]} 33. Qf5 {[%emt 0:00:00]} h6 {[%emt 0:00:23]} 34. Nh4 {[%emt 0:00:00]} Bxh4 {[%emt 0:00:27]} 35. Qf8+ {[%emt 0:00:00]} Rxf8 {[%emt 0:00:09]} 36. exf8=Q+ {[%emt 0:00:00]} Kh7 {[%emt 0:00:14]} 37. Be4+ {[%emt 0:00:00]} g6 {[%emt 0:00:21]} 38. Qf7+ {[%emt 0:00:00]} Kh8 {[%emt 0:00:09]} 39. Bxg6 {[%emt 0:00:00]} Qd7 {[%emt 0:00:33]} 40. Qf8# {[%emt 0:00:00]} 1-0

[Event "FIDE WCCC Girls-10 2024"]
[Site "Montesilvano"]
[Date "2024.11.18"]
[Round "3.24"]
[White "Constantin-Ciuntu, Anne-Sophie"]
[Black "Mence, Jasmina"]
[Result "1-0"]
[ECO "C70"]
[WhiteElo "1672"]
[BlackElo "1542"]
[PlyCount "84"]
[EventDate "2024.11.18"]
[EventType "swiss"]
[EventCountry "ITA"]
[TimeControl "5400+30"]

1. e4 {[%emt 0:00:10]} e5 {[%emt 0:00:20]} 2. Nf3 {[%emt 0:00:07]} Nc6 {[%emt 0:00:24]} 3. Bb5 {[%emt 0:00:09]} a6 {[%emt 0:00:19]} 4. Ba4 {[%emt 0:00:39]} b5 {[%emt 0:00:34]} 5. Bb3 {[%emt 0:00:06]} Na5 {[%emt 0:00:19]} 6. Nc3 {[%emt 0:01:52]} d6 {[%emt 0:02:04]} 7. d3 {[%emt 0:01:08]} Nf6 {[%emt 0:04:40]} 8. Bg5 {[%emt 0:01:01]} Be7 {[%emt 0:00:45]} 9. Qd2 {[%emt 0:06:23]} Bd7 {[%emt 0:06:58]} 10. Ne2 {[%emt 0:16:41]} Nxb3 {[%emt 0:06:27]} 11. axb3 {[%emt 0:00:08]} Bg4 {[%emt 0:12:03]} 12. Ng3 {[%emt 0:05:38]} Bxf3 {[%emt 0:01:11]} 13. gxf3 {[%emt 0:01:58]} d5 {[%emt 0:04:28]} 14. Nf5 {[%emt 0:03:13]} d4 {[%emt 0:01:16]} 15. Nxg7+ {[%emt 0:00:22]} Kd7 {[%emt 0:03:13]} 16. f4 {[%emt 0:03:57]} exf4 {[%emt 0:05:02]} 17. Qxf4 {[%emt 0:01:42]} Rg8 {[%emt 0:01:36]} 18. e5 {[%emt 0:01:42]} Ne8 {[%emt 0:07:59]} 19. Qxd4+ {[%emt 0:00:28]} Kc8 {[%emt 0:01:08]} 20. Qg4+ {[%emt 0:00:37]} Qd7 {[%emt 0:01:26]} 21. Qxd7+ {[%emt 0:03:51]} Kxd7 {[%emt 0:00:22]} 22. Bxe7 {[%emt 0:00:11]} Kxe7 {[%emt 0:00:23]} 23. Nxe8 {[%emt 0:00:07]} Raxe8 {[%emt 0:00:24]} 24. Rxa6 {[%emt 0:00:17]} Kd7 {[%emt 0:00:56]} 25. f4 {[%emt 0:00:17]} Rg4 {[%emt 0:01:27]} 26. Rf6 {[%emt 0:00:25]} Re7 {[%emt 0:01:48]} 27. Kf2 {[%emt 0:00:27]} Rg6 {[%emt 0:02:21]} 28. Rxg6 {[%emt 0:00:20]} fxg6 {[%emt 0:00:12]} 29. c4 {[%emt 0:00:38]} Rf7 {[%emt 0:00:53]} 30. Ke3 {[%emt 0:00:24]} Kc6 {[%emt 0:00:39]} 31. d4 {[%emt 0:00:22]} bxc4 {[%emt 0:00:18]} 32. bxc4 {[%emt 0:00:08]} Rf8 {[%emt 0:00:29]} 33. b4 {[%emt 0:00:37]} Rb8 {[%emt 0:01:13]} 34. d5+ {[%emt 0:00:07]} Kd7 {[%emt 0:00:31]} 35. Rb1 {[%emt 0:00:12]} Ra8 {[%emt 0:00:33]} 36. Kd4 {[%emt 0:00:15]} Ra2 {[%emt 0:00:58]} 37. e6+ {[%emt 0:00:09]} Ke7 {[%emt 0:00:35]} 38. Kc5 {[%emt 0:00:46]} Rxh2 {[%emt 0:00:27]} 39. Kc6 {[%emt 0:00:10]} Rc2 {[%emt 0:00:52]} 40. c5 {[%emt 0:00:23]} h5 {[%emt 0:00:32]} 41. Kxc7 {[%emt 0:00:08]} h4 {[%emt 0:00:17]} 42. d6+ {[%emt 0:00:07]} Ke8 {[%emt 0:01:01]} 1-0

[Event "FIDE WCCC Girls-10 2024"]
[Site "Montesilvano"]
[Date "2024.11.18"]
[Round "3.25"]
[White "Mandukhai, Munkhbat"]
[Black "Isakhanyan, Nare"]
[Result "0-1"]
[ECO "B22"]
[WhiteElo "1645"]
[BlackElo "1540"]
[PlyCount "54"]
[EventDate "2024.11.18"]
[EventType "swiss"]
[EventCountry "ITA"]
[TimeControl "5400+30"]

1. e4 {[%emt 0:00:01]} c6 {[%emt 0:00:03]} 2. c4 {[%emt 0:00:12]} d5 {[%emt 0:00:09]} 3. exd5 {[%emt 0:00:06]} cxd5 {[%emt 0:00:06]} 4. cxd5 {[%emt 0:00:06]} Qxd5 {[%emt 0:01:14]} 5. Nc3 {[%emt 0:00:20]} Qd8 {[%emt 0:00:30]} 6. Nf3 {[%emt 0:00:15]} Nf6 {[%emt 0:00:07]} 7. d4 {[%emt 0:01:23]} e6 {[%emt 0:01:59]} 8. a3 {[%emt 0:02:28]} Be7 {[%emt 0:01:16]} 9. Bd3 {[%emt 0:00:10]} O-O {[%emt 0:00:14]} 10. O-O {[%emt 0:00:05]} b6 {[%emt 0:02:25]} 11. Re1 {[%emt 0:06:38]} Bb7 {[%emt 0:01:20]} 12. Ne5 {[%emt 0:03:13]} Nc6 {[%emt 0:02:34]} 13. Nxc6 {[%emt 0:07:40]} Bxc6 {[%emt 0:00:04]} 14. Bc2 {[%emt 0:03:38]} Qc7 {[%emt 0:02:46]} 15. Be3 {[%emt 0:07:31]} Rfd8 {[%emt 0:04:30]} 16. Rc1 {[%emt 0:03:49]} Qb7 {[%emt 0:00:21]} 17. f3 {[%emt 0:01:52]} Nd5 {[%emt 0:04:11]} 18. Qd3 {[%emt 0:06:10]} g6 {[%emt 0:01:45]} 19. Bb3 {[%emt 0:02:42]} Bf6 {[%emt 0:03:02]} 20. Ne4 {[%emt 0:01:49]} Bg7 {[%emt 0:15:23]} 21. Bg5 {[%emt 0:07:48]} Ne7 {[%emt 0:03:39]} 22. Be3 {[%emt 0:20:02]} Nf5 {[%emt 0:00:50]} 23. Kh1 {[%emt 0:07:20]} Nxd4 {[%emt 0:06:34]} 24. Bxd4 {[%emt 0:00:59]} Rxd4 {[%emt 0:00:22]} 25. Qe2 {[%emt 0:00:29]} Rad8 {[%emt 0:02:56]} 26. Rc2 {[%emt 0:03:55]} Qd7 {[%emt 0:07:22]} 27. Rec1 {[%emt 0:04:27]} Rd1+ {[%emt 0:38:18]} 0-1

[Event "FIDE WCCC Girls-10 2024"]
[Site "Montesilvano"]
[Date "2024.11.18"]
[Round "3.26"]
[White "Camacho Chavez, Nirvana"]
[Black "Ivanova, Darina"]
[Result "1/2-1/2"]
[ECO "B76"]
[WhiteElo "1638"]
[BlackElo "1516"]
[PlyCount "82"]
[EventDate "2024.11.18"]
[EventType "swiss"]
[EventCountry "ITA"]
[TimeControl "5400+30"]

1. e4 {[%emt 0:00:11]} c5 {[%emt 0:00:17]} 2. Nf3 {[%emt 0:00:07]} Nc6 {[%emt 0:00:16]} 3. d4 {[%emt 0:00:10]} cxd4 {[%emt 0:00:10]} 4. Nxd4 {[%emt 0:00:09]} g6 {[%emt 0:00:24]} 5. Nc3 {[%emt 0:00:16]} Bg7 {[%emt 0:00:22]} 6. Be3 {[%emt 0:00:15]} Nf6 {[%emt 0:00:19]} 7. Bc4 {[%emt 0:00:14]} O-O {[%emt 0:01:05]} 8. Bb3 {[%emt 0:00:37]} d6 {[%emt 0:00:44]} 9. f3 {[%emt 0:02:40]} Qb6 {[%emt 0:02:44]} 10. Nf5 {[%emt 0:01:51]} Qa5 {[%emt 0:00:25]} 11. Nxg7 {[%emt 0:03:40]} Kxg7 {[%emt 0:02:21]} 12. Qd2 {[%emt 0:00:26]} Kg8 {[%emt 0:00:19]} 13. O-O {[%emt 0:01:04]} Be6 {[%emt 0:05:37]} 14. Bg5 {[%emt 0:03:41]} Rad8 {[%emt 0:03:35]} 15. Bh6 {[%emt 0:01:14]} Rfe8 {[%emt 0:03:42]} 16. Qg5 {[%emt 0:02:16]} Qxg5 {[%emt 0:01:00]} 17. Bxg5 {[%emt 0:00:06]} Nd4 {[%emt 0:02:57]} 18. Rfd1 {[%emt 0:01:21]} Bxb3 {[%emt 0:02:55]} 19. cxb3 {[%emt 0:01:28]} Ne6 {[%emt 0:02:10]} 20. Bh6 {[%emt 0:00:24]} Rc8 {[%emt 0:05:27]} 21. Rac1 {[%emt 0:01:43]} g5 {[%emt 0:02:41]} 22. Nd5 {[%emt 0:01:40]} Nxd5 {[%emt 0:01:44]} 23. exd5 {[%emt 0:00:15]} Nf4 {[%emt 0:00:18]} 24. Rxc8 {[%emt 0:01:29]} Rxc8 {[%emt 0:00:13]} 25. Bxg5 {[%emt 0:00:12]} Ng6 {[%emt 0:01:12]} 26. Rd2 {[%emt 0:01:20]} f6 {[%emt 0:00:46]} 27. Be3 {[%emt 0:00:22]} b6 {[%emt 0:01:12]} 28. Kf2 {[%emt 0:00:45]} Ne5 {[%emt 0:00:45]} 29. h3 {[%emt 0:02:55]} f5 {[%emt 0:02:00]} 30. f4 {[%emt 0:00:51]} Nd7 {[%emt 0:00:35]} 31. b4 {[%emt 0:02:01]} Nf6 {[%emt 0:03:08]} 32. Kf3 {[%emt 0:01:31]} Rc4 {[%emt 0:00:28]} 33. a3 {[%emt 0:00:43]} h5 {[%emt 0:00:56]} 34. g3 {[%emt 0:05:29]} Ne4 {[%emt 0:02:02]} 35. Rd3 {[%emt 0:01:24]} Rc2 {[%emt 0:00:39]} 36. b3 {[%emt 0:00:38]} Rh2 {[%emt 0:00:42]} 37. h4 {[%emt 0:00:23]} Rh3 {[%emt 0:01:18]} 38. Bf2 {[%emt 0:01:18]} Rh2 {[%emt 0:00:14]} 39. Bg1 {[%emt 0:01:14]} Ra2 {[%emt 0:00:59]} 40. a4 {[%emt 0:00:26]} Ra3 {[%emt 0:00:10]} 41. b5 {[%emt 0:01:43]} Rxb3 {[%emt 0:00:30]} 1/2-1/2

[Event "FIDE WCCC Girls-10 2024"]
[Site "Montesilvano"]
[Date "2024.11.18"]
[Round "3.27"]
[White "Pambieri, Nicole"]
[Black "Bayramova, Aya"]
[Result "0-1"]
[ECO "A38"]
[WhiteElo "1482"]
[BlackElo "1634"]
[PlyCount "138"]
[EventDate "2024.11.18"]
[EventType "swiss"]
[EventCountry "ITA"]
[TimeControl "5400+30"]

1. c4 {[%emt 0:00:02]} c5 {[%emt 0:00:07]} 2. Nf3 {[%emt 0:00:09]} Nf6 {[%emt 0:00:12]} 3. g3 {[%emt 0:00:27]} g6 {[%emt 0:00:14]} 4. Bg2 {[%emt 0:00:17]} Nc6 {[%emt 0:00:19]} 5. Nc3 {[%emt 0:00:19]} Bg7 {[%emt 0:00:06]} 6. O-O {[%emt 0:00:19]} O-O {[%emt 0:00:05]} 7. d3 {[%emt 0:01:01]} d6 {[%emt 0:00:31]} 8. Bd2 {[%emt 0:00:58]} e5 {[%emt 0:00:32]} 9. Rb1 {[%emt 0:17:37]} Bd7 {[%emt 0:01:32]} 10. Ng5 {[%emt 0:04:56]} h6 {[%emt 0:06:14]} 11. Nge4 {[%emt 0:00:15]} Ne8 {[%emt 0:01:06]} 12. Nb5 {[%emt 0:15:20]} Be6 {[%emt 0:01:00]} 13. Be1 {[%emt 0:03:51]} a6 {[%emt 0:00:37]} 14. Nbc3 {[%emt 0:00:09]} f5 {[%emt 0:00:06]} 15. Nd2 {[%emt 0:00:18]} f4 {[%emt 0:01:42]} 16. a3 {[%emt 0:02:39]} a5 {[%emt 0:00:20]} 17. Nde4 {[%emt 0:02:19]} Qd7 {[%emt 0:07:12]} 18. Nb5 {[%emt 0:03:42]} Nd4 {[%emt 0:02:02]} 19. Nxd4 {[%emt 0:04:23]} cxd4 {[%emt 0:00:40]} 20. b4 {[%emt 0:01:32]} fxg3 {[%emt 0:04:52]} 21. hxg3 {[%emt 0:00:57]} a4 {[%emt 0:15:18]} 22. c5 {[%emt 0:00:40]} d5 {[%emt 0:00:40]} 23. c6 {[%emt 0:26:34]} bxc6 {[%emt 0:02:26]} 24. Nc5 {[%emt 0:00:47]} Qe7 {[%emt 0:01:01]} 25. Nxe6 {[%emt 0:00:14]} Qxe6 {[%emt 0:00:09]} 26. b5 {[%emt 0:00:55]} Nf6 {[%emt 0:01:15]} 27. b6 {[%emt 0:00:37]} Rfb8 {[%emt 0:00:15]} 28. Rb4 {[%emt 0:06:08]} c5 {[%emt 0:02:22]} 29. Rxa4 {[%emt 0:01:36]} Qxb6 {[%emt 0:00:55]} 30. Rxa8 {[%emt 0:01:09]} Rxa8 {[%emt 0:00:01]} 31. a4 {[%emt 0:00:15]} Qb2 {[%emt 0:00:50]} 32. Bd2 {[%emt 0:01:03]} Ra7 {[%emt 0:51:49]} 33. Qc1 {[%emt 0:01:00]} Qxc1 {[%emt 0:00:00]} 34. Rxc1 {[%emt 0:00:11]} Bf8 {[%emt 0:00:00]} 35. Ra1 {[%emt 0:00:30]} Kf7 {[%emt 0:00:00]} 36. a5 {[%emt 0:00:44]} Ke7 {[%emt 0:00:00]} 37. g4 {[%emt 0:01:24]} Kd6 {[%emt 0:00:00]} 38. e3 {[%emt 0:00:39]} Nxg4 {[%emt 0:00:00]} 39. exd4 {[%emt 0:00:22]} exd4 {[%emt 0:00:00]} 40. Rb1 {[%emt 0:01:18]} Ra6 {[%emt 0:00:00]} 41. Rb5 {[%emt 0:01:30]} Be7 {[%emt 0:00:00]} 42. Rb7 {[%emt 0:00:40]} g5 {[%emt 0:00:00]} 43. f4 {[%emt 0:00:28]} Ne3 {[%emt 0:00:00]} 44. Rb5 {[%emt 0:01:07]} Nxg2 {[%emt 0:00:00]} 45. Kxg2 {[%emt 0:00:05]} Kc6 {[%emt 0:00:00]} 46. Rb1 {[%emt 0:00:21]} gxf4 {[%emt 0:00:00]} 47. Bxf4 {[%emt 0:00:04]} Bg5 {[%emt 0:00:00]} 48. Bxg5 {[%emt 0:00:53]} hxg5 {[%emt 0:00:00]} 49. Kg3 {[%emt 0:00:27]} Rxa5 {[%emt 0:00:00]} 50. Kg4 {[%emt 0:00:08]} c4 {[%emt 0:00:00]} 51. Rc1 {[%emt 0:00:12]} Rc5 {[%emt 0:00:00]} 52. Kxg5 {[%emt 0:00:42]} c3 {[%emt 0:00:00]} 53. Rc2 {[%emt 0:00:22]} Ra5 {[%emt 0:00:00]} 54. Kf4 {[%emt 0:00:26]} Rb5 {[%emt 0:00:00]} 55. Kf3 {[%emt 0:00:47]} Rb2 {[%emt 0:00:00]} 56. Rc1 {[%emt 0:00:13]} Rd2 {[%emt 0:00:00]} 57. Rh1 {[%emt 0:01:21]} Rxd3+ {[%emt 0:00:00]} 58. Ke2 {[%emt 0:00:07]} Re3+ {[%emt 0:00:00]} 59. Kf2 {[%emt 0:00:24]} c2 {[%emt 0:00:00]} 60. Rc1 {[%emt 0:00:58]} Rc3 {[%emt 0:00:00]} 61. Ke2 {[%emt 0:00:08]} d3+ {[%emt 0:00:00]} 62. Kd2 {[%emt 0:00:15]} Rb3 {[%emt 0:00:00]} 63. Rh1 {[%emt 0:00:31]} Rb1 {[%emt 0:00:00]} 64. Rh6+ {[%emt 0:00:41]} Kc5 {[%emt 0:00:00]} 65. Kxd3 {[%emt 0:01:14]} c1=Q {[%emt 0:00:00]} 66. Rc6+ {[%emt 0:00:40]} Kxc6 {[%emt 0:00:00]} 67. Ke2 {[%emt 0:00:05]} Qc3 {[%emt 0:00:00]} 68. Kf2 {[%emt 0:00:11]} Rb2+ {[%emt 0:00:00]} 69. Kf1 {[%emt 0:00:17]} Qc1# {[%emt 0:00:00]} 0-1

[Event "FIDE WCCC Girls-10 2024"]
[Site "Montesilvano"]
[Date "2024.11.18"]
[Round "3.28"]
[White "Vitsiuk, Aleksandra"]
[Black "Li, Wan Qin"]
[Result "0-1"]
[ECO "B53"]
[WhiteElo "1476"]
[BlackElo "1628"]
[PlyCount "98"]
[EventDate "2024.11.18"]
[EventType "swiss"]
[EventCountry "ITA"]
[TimeControl "5400+30"]

1. e4 {[%emt 0:00:03]} c5 {[%emt 0:00:12]} 2. Nf3 {[%emt 0:00:17]} d6 {[%emt 0:00:13]} 3. d4 {[%emt 0:00:27]} cxd4 {[%emt 0:00:11]} 4. Qxd4 {[%emt 0:00:32]} Nc6 {[%emt 0:00:13]} 5. Bb5 {[%emt 0:00:44]} Bd7 {[%emt 0:00:23]} 6. Bxc6 {[%emt 0:00:38]} Bxc6 {[%emt 0:00:28]} 7. Nc3 {[%emt 0:00:48]} e6 {[%emt 0:01:09]} 8. O-O {[%emt 0:00:56]} Nf6 {[%emt 0:02:02]} 9. Bg5 {[%emt 0:01:27]} e5 {[%emt 0:01:30]} 10. Qd3 {[%emt 0:01:15]} h6 {[%emt 1:29:09]} 11. Bxf6 {[%emt 0:01:16]} Qxf6 {[%emt 0:00:00]} 12. Rad1 {[%emt 0:02:28]} Be7 {[%emt 0:00:00]} 13. Nb5 {[%emt 0:02:54]} O-O {[%emt 0:00:00]} 14. Na3 {[%emt 0:02:55]} Rad8 {[%emt 0:00:00]} 15. c4 {[%emt 0:02:28]} Qg6 {[%emt 0:00:00]} 16. Rfe1 {[%emt 0:01:23]} f5 {[%emt 0:00:00]} 17. Nd2 {[%emt 0:02:55]} fxe4 {[%emt 0:00:00]} 18. Nxe4 {[%emt 0:01:31]} d5 {[%emt 0:00:00]} 19. Ng3 {[%emt 0:02:38]} e4 {[%emt 0:00:00]} 20. Qb3 {[%emt 0:01:48]} Bc5 {[%emt 0:00:00]} 21. Rd2 {[%emt 0:04:12]} d4 {[%emt 0:00:00]} 22. Nc2 {[%emt 0:02:43]} e3 {[%emt 0:00:00]} 23. fxe3 {[%emt 0:01:46]} dxe3 {[%emt 0:00:00]} 24. Rde2 {[%emt 0:02:03]} Rd3 {[%emt 0:00:00]} 25. Qxd3 {[%emt 0:01:21]} Qxd3 {[%emt 0:00:00]} 26. Nxe3 {[%emt 0:00:11]} Re8 {[%emt 0:00:00]} 27. Ngf1 {[%emt 0:01:25]} Bb4 {[%emt 0:00:00]} 28. Kf2 {[%emt 0:01:30]} Bxe1+ {[%emt 0:00:00]} 29. Kxe1 {[%emt 0:00:08]} Bxg2 {[%emt 0:00:00]} 30. Rxg2 {[%emt 0:00:39]} Rxe3+ {[%emt 0:00:00]} 31. Nxe3 {[%emt 0:00:05]} Qxe3+ {[%emt 0:00:00]} 32. Re2 {[%emt 0:00:06]} Qc1+ {[%emt 0:00:00]} 33. Kf2 {[%emt 0:00:04]} Qxc4 {[%emt 0:00:00]} 34. b3 {[%emt 0:00:24]} Qf4+ {[%emt 0:00:00]} 35. Ke1 {[%emt 0:00:20]} Kh7 {[%emt 0:00:00]} 36. Kd1 {[%emt 0:00:50]} Qf1+ {[%emt 0:00:00]} 37. Kd2 {[%emt 0:00:13]} Qa1 {[%emt 0:00:00]} 38. Ke3 {[%emt 0:00:19]} a5 {[%emt 0:00:00]} 39. Kd3 {[%emt 0:01:16]} h5 {[%emt 0:00:00]} 40. Rc2 {[%emt 0:01:06]} Kh6 {[%emt 0:00:00]} 41. Kc4 {[%emt 0:00:34]} Qe5 {[%emt 0:00:00]} 42. Kd3 {[%emt 0:00:33]} g5 {[%emt 0:00:00]} 43. Re2 {[%emt 0:01:22]} Qd5+ {[%emt 0:00:00]} 44. Kc3 {[%emt 0:00:20]} g4 {[%emt 0:00:00]} 45. Kb2 {[%emt 0:00:18]} h4 {[%emt 0:00:00]} 46. Ka3 {[%emt 0:00:30]} g3 {[%emt 0:00:00]} 47. Ka4 {[%emt 0:01:00]} g2 {[%emt 0:00:00]} 48. Re1 {[%emt 0:00:13]} g1=Q {[%emt 0:00:00]} 49. Rxg1 {[%emt 0:00:13]} Qd4+ {[%emt 0:00:00]} 0-1